{"text_format":"1","workbook":"xlsx","n_sheets":2,"sheets":["記入対象者の決め方","計算背景"],"not_rendered":{"charts":0,"images":0,"macros":1,"external_links":0,"defined_names":2,"comments":0,"pivot_tables":0},"unopened":[],"bounds":{"document_bytes":16777216,"sheet_cells":100000,"rows_first":2000,"rows_last":500,"rows_between":2000,"halvings":0,"cell_chars":16384,"cell_head_chars":4096},"cells_cut":0,"cells_raw":0,"read":"whole","date_system":"1900"}

{"sheet":"記入対象者の決め方","index":0,"n_rows":51,"n_cols":40,"rows_kept":51,"cut":false,"hidden":false,"merged":[[2,31,2,60],[10,8,11,32],[13,8,15,32],[13,34,15,38],[17,8,19,32],[17,34,19,38],[17,39,19,40],[10,34,11,38],[19,53,34,89],[13,39,15,40],[10,39,11,40],[27,8,28,9],[21,8,22,32],[24,8,25,32],[27,29,28,32],[27,21,28,28],[27,10,28,20],[30,4,30,48],[9,63,16,72],[32,4,33,52],[50,4,50,87],[34,29,34,33],[34,34,34,41],[35,4,36,87],[41,4,42,87],[44,4,45,87],[38,4,39,87],[47,4,48,87],[34,4,34,28],[21,34,22,38],[24,34,25,38],[27,34,28,38]]}
[]
[]
[null,null,null,null,null,null,null,null,null,null,null,null,null,null,null,null,null,null,null,null,null,null,null,null,null,null,null,null,null,null,null,"調査票（給与所得者用）への記入対象者の決め方"]
[]
[]
[null,null,null,null,null,"①～⑥を入力していただくと、お手元の給与台帳等のうち、どなたを記入対象としていただくのかがわかります。なお、ご回答いただくにあたり、①～⑥の順に入力してください。"]
[]
[null,null,null,null,null,"★",null,null,null,"のセルに該当する数字を入力してください。（④及び⑤は、「はい」「いいえ」から選択してください。）※数字を入力したセルが赤反転した場合は、入力誤りがありますので、訂正してください。）"]
[]
[]
[null,null,null,null,null,null,null,null,"①　令和６年12月31日現在の給与所得者数",null,null,null,null,null,null,null,null,null,null,null,null,null,null,null,null,null,null,null,null,null,null,null,null,null,null,null,null,null,null,"人"]
[]
[]
[null,null,null,null,null,null,null,null,"②　上記①のうち、丙欄を適用した人数",null,null,null,null,null,null,null,null,null,null,null,null,null,null,null,null,null,null,null,null,null,null,null,null,null,null,null,null,null,null,"人"]
[]
[]
[]
[null,null,null,null,null,null,null,null,"③　上記①のうち、給与の金額（年間）が2,000万円を超える人数",null,null,null,null,null,null,null,null,null,null,null,null,null,null,null,null,null,null,null,null,null,null,null,null,null,null,null,null,null,null,"人"]
[]
[]
[]
[null,null,null,null,null,null,null,null,"④　資本金は10億円以上ですか。\n（株式会社以外の場合は、「いいえ」を選択してください。）"]
[]
[]
[null,null,null,null,null,null,null,null,"⑤　株式会社の本社ですか。\n（株式会社以外の場合は、「いいえ」を選択してください。）"]
[]
[]
[null,null,null,null,null,null,null,null,"⑥",null,{"$f":"IF(計算背景!N20=FALSE,\"上記①～⑤\",計算背景!N20)","v":"上記①～⑤"},null,null,null,null,null,null,null,null,null,null,{"$f":"IF(計算背景!N20<>\"\",計算背景!Q24,計算背景!R24)","v":"を入力してください。"},null,null,null,null,null,null,null,{"$f":"IF(計算背景!N20<>\"\",計算背景!Q25,計算背景!R25)","v":"・・・"}]
[]
[]
[null,null,null,null,{"$f":"IF(計算背景!N20<>\"\",計算背景!Q23,計算背景!R23)","v":"※上記①～⑤を入力していただくと、自動的に⑥が赤反転しますが、任意の数を入力していただくと、黄色に変わります。\n　 赤色の場合は、正しい記入対象者を求めることができませんので、左側に示された条件の範囲内の数を入力していただき、黄色に変わったことをご確認のうえ、お進みください。"}]
[]
[null,null,null,null,"★　調査票（給与所得者用）への記入対象者について"]
[]
[null,null,null,null,"　調査票（給与所得者用）への記入対象者は、合計",null,null,null,null,null,null,null,null,null,null,null,null,null,null,null,null,null,null,null,null,null,null,null,null,{"$f":"計算背景!G33","v":0},null,null,null,null,"人です。"]
[null,null,null,null,"(1)　給与の金額（年間）2,000万円を超える0人を調査票（給与所得者用）に記載してください。"]
[]
[]
[null,null,null,null,"(2)　続いて、給与の金額（年間）が2,000万円以下（0人）の給与台帳等の中で、一番上に記載されている人から数えて0人目の人を一人目として選び、順次0人ごとに、合計0人に達するまで選び出し、"]
[]
[]
[null,null,null,null,"　　　(1)で記載した人に続き、記入します。"]
[]
[]
[null,null,null,null,"　　　なお、上記(1)(2)で記入していただいた合計0人は、調査票（源泉徴収義務者用）（③）の２（2）の「回答いただいた給与所得者用調査票の人員及び層番号」欄の人員（※）に記載し、調査票（源泉徴収義務者用）（③）の"]
[]
[]
[null,null,null,null,"　　　２（２）の「回答いただいた給与所得者用調査票の人員及び層番号」欄の層（※）には、第-層とご記載ください。"]
[]
[]
[null,null,null,null,"※オンライン調査システムをご利用の場合は、調査票（源泉徴収義務者用）「５　給与所得者用調査票に入力した人員数及び層番号」に入力してください。"]

{"sheet":"計算背景","index":1,"n_rows":63,"n_cols":18,"rows_kept":63,"cut":false,"hidden":true,"merged":[[62,2,62,3],[32,6,33,6],[33,1,33,5],[49,1,50,10],[53,0,53,2],[53,3,53,5],[53,6,53,8],[59,8,59,10],[60,6,61,6],[60,7,61,7],[60,8,61,8],[60,9,61,9],[26,6,27,6],[26,9,27,9],[27,1,27,5],[27,7,27,8],[29,2,30,2],[29,4,30,4],[29,7,30,7],[30,5,30,6],[23,5,24,5],[24,1,24,4],[24,6,24,10],[7,1,7,10],[9,0,9,2],[9,3,9,5],[9,6,9,8],[13,1,13,3],[18,8,18,10],[19,6,20,6],[19,7,20,7],[19,8,20,8],[19,9,20,9],[21,2,21,3]]}
[]
[]
[]
[]
[]
[]
["★","黄色","のセルに該当する数字を入力してください。"]
[null,"※数字を入力したセルが赤反転した場合は、入力誤りがありますので訂正してください。"]
[]
["平成29年12月31日現在の給与所得者数",null,null,"「日額表」丙欄を適用した人数",null,null,"給与の金額（年間）2,000万円超の人数",null,null,null,null,null,null,null,null,null,1,1]
[null,{"$f":"記入対象者の決め方!AI11","v":0},"人","－",{"$f":"記入対象者の決め方!AI14","v":0},"人","－",{"$f":"記入対象者の決め方!AI18","v":0},"人","＝",{"$f":"B11-E11-H11","v":0},"人",null,null,null,null,2,2]
[null,null,null,null,null,null,null,null,null,null,null,null,null,null,null,null,3,6]
[null,null,null,null,null,null,null,null,null,null,null,null,null,null,null,null,4,20]
[null,"丙欄以外の給与所得者数は",null,null,{"$f":"B11-E11","v":0},"人ですので、貴事業所は、",null,null,null,null,null,null,{"$f":"IF(E14<10,\"1\",IF(E14<30,\"2\",IF(E14<100,\"１～５の任意の数\",IF(E14<500,\"１～20の任意の数\",IF(E14<1000,\"１～50の任意の数\",IF(E14<5000,\"１～１00の任意の数\",\"１～200の任意の数\"))))))","v":"1"},null,null,null,5,100]
[null,"第",{"$f":"IF(E14<10,\"1\",IF(E14<30,\"2\",IF(E14<100,\"3\",IF(E14<500,\"4\",IF(E14<1000,\"5\",IF(E14<5000,\"6\",\"7\"))))))","v":"1"},"層","に該当します。",null,null,null,null,null,null,null,null,null,null,null,6,200]
[null,null,null,null,null,null,null,null,null,null,null,null,null,null,null,null,7,200]
[null,null,null,null,null,null,null,null,null,null,null,null,"④",{"$f":"IF(記入対象者の決め方!AI22=\"はい\",\"1\",\"2\")","v":"2"},null,null,8,20]
[null,null,null,null,null,null,null,null,null,null,null,null,"⑤",{"$f":"IF(記入対象者の決め方!AI25=\"はい\",\"1\",\"2\")","v":"2"}]
[null,{"$f":"K11","v":0},"人","－",{"$f":"O19","v":0},"人",null,null,"調査票（給与所得者用）記入人数",null,null,null,"層番号",{"$f":"IF(AND(E14<500,記入対象者の決め方!AI22=\"はい\",記入対象者の決め方!AI25=\"はい\"),\"8\",IF(OR(AND(計算背景!E14<10,記入対象者の決め方!AI22=\"はい\",記入対象者の決め方!AI25=\"いいえ\"),AND(計算背景!E14<10,記入対象者の決め方!AI22=\"いいえ\",記入対象者の決め方!AI25=\"はい\"),AND(計算背景!E14<10,記入対象者の決め方!AI22=\"いいえ\",記入対象者の決め方!AI25=\"いいえ\")),\"1\",IF(OR(AND(計算背景!E14<30,記入対象者の決め方!AI22=\"はい\",記入対象者の決め方!AI25=\"いいえ\"),AND(計算背景!E14<30,記入対象者の決め方!AI22=\"いいえ\",記入対象者の決め方!AI25=\"はい\"),AND(計算背景!E14<30,記入対象者の決め方!AI22=\"いいえ\",記入対象者の決め方!AI25=\"いいえ\")),\"2\",IF(OR(AND(計算背景!E14<100,記入対象者の決め方!AI22=\"はい\",記入対象者の決め方!AI25=\"いいえ\"),AND(計算背景!E14<100,記入対象者の決め方!AI22=\"いいえ\",記入対象者の決め方!AI25=\"はい\"),AND(計算背景!E14<100,記入対象者の決め方!AI22=\"いいえ\",記入対象者の決め方!AI25=\"いいえ\")),\"3\",IF(OR(AND(計算背景!E14<500,記入対象者の決め方!AI22=\"はい\",記入対象者の決め方!AI25=\"いいえ\"),AND(計算背景!E14<500,記入対象者の決め方!AI22=\"いいえ\",記入対象者の決め方!AI25=\"はい\"),AND(計算背景!E14<500,記入対象者の決め方!AI22=\"いいえ\",記入対象者の決め方!AI25=\"いいえ\")),\"4\",IF(OR(AND(計算背景!E14<1000,記入対象者の決め方!AI22=\"はい\",記入対象者の決め方!AI25=\"はい\"),AND(計算背景!E14<1000,記入対象者の決め方!AI22=\"はい\",記入対象者の決め方!AI25=\"いいえ\"),AND(計算背景!E14<1000,記入対象者の決め方!AI22=\"いいえ\",記入対象者の決め方!AI25=\"はい\"),AND(計算背景!E14<1000,記入対象者の決め方!AI22=\"いいえ\",記入対象者の決め方!AI25=\"いいえ\")),\"5\",IF(OR(AND(計算背景!E14<5000,記入対象者の決め方!AI22=\"はい\",記入対象者の決め方!AI25=\"はい\"),AND(計算背景!E14<5000,記入対象者の決め方!AI22=\"はい\",記入対象者の決め方!AI25=\"いいえ\"),AND(計算背景!E14<5000,記入対象者の決め方!AI22=\"いいえ\",記入対象者の決め方!AI25=\"はい\"),AND(計算背景!E14<5000,記入対象者の決め方!AI22=\"いいえ\",記入対象者の決め方!AI25=\"いいえ\")),\"6\",IF(OR(AND(計算背景!E14>=5000,記入対象者の決め方!AI22=\"はい\",記入対象者の決め方!AI25=\"はい\"),AND(計算背景!E14>=5000,記入対象者の決め方!AI22=\"はい\",記入対象者の決め方!AI25=\"いいえ\"),AND(計算背景!E14>=5000,記入対象者の決め方!AI22=\"いいえ\",記入対象者の決め方!AI25=\"はい\"),AND(計算背景!E14>=5000,記入対象者の決め方!AI22=\"いいえ\",記入対象者の決め方!AI25=\"いいえ\")),\"7\",\"-\"))))))))","v":"-"},{"$f":"IF(N19=\"7\",IF(B19>=20000,ROUNDDOWN((記入対象者の決め方!AI11-記入対象者の決め方!AI14-記入対象者の決め方!AI18)/100,0),記入対象者の決め方!AI28),記入対象者の決め方!AI28)","v":0}]
[null,null,null,null,null,null,"＋",1,"＝",{"$f":"IF(C22=0,\"-\",IFERROR(ROUNDDOWN((B19-E19)/C22,0)+1,0))","v":0},null,null,"任意の数",{"$f":"IF(AND(E14<500,記入対象者の決め方!AI22=\"はい\",記入対象者の決め方!AI25=\"はい\"),\"1～20の任意の数\",IF(OR(AND(計算背景!E14<10,記入対象者の決め方!AI22=\"はい\",記入対象者の決め方!AI25=\"いいえ\"),AND(計算背景!E14<10,記入対象者の決め方!AI22=\"いいえ\",記入対象者の決め方!AI25=\"はい\"),AND(計算背景!E14<10,記入対象者の決め方!AI22=\"いいえ\",記入対象者の決め方!AI25=\"いいえ\")),\"1\",IF(OR(AND(計算背景!E14<30,記入対象者の決め方!AI22=\"はい\",記入対象者の決め方!AI25=\"いいえ\"),AND(計算背景!E14<30,記入対象者の決め方!AI22=\"いいえ\",記入対象者の決め方!AI25=\"はい\"),AND(計算背景!E14<30,記入対象者の決め方!AI22=\"いいえ\",記入対象者の決め方!AI25=\"いいえ\")),\"1～2の任意の数\",IF(OR(AND(計算背景!E14<100,記入対象者の決め方!AI22=\"はい\",記入対象者の決め方!AI25=\"いいえ\"),AND(計算背景!E14<100,記入対象者の決め方!AI22=\"いいえ\",記入対象者の決め方!AI25=\"はい\"),AND(計算背景!E14<100,記入対象者の決め方!AI22=\"いいえ\",記入対象者の決め方!AI25=\"いいえ\")),\"1～6の任意の数\",IF(OR(AND(計算背景!E14<500,記入対象者の決め方!AI22=\"はい\",記入対象者の決め方!AI25=\"いいえ\"),AND(計算背景!E14<500,記入対象者の決め方!AI22=\"いいえ\",記入対象者の決め方!AI25=\"はい\"),AND(計算背景!E14<500,記入対象者の決め方!AI22=\"いいえ\",記入対象者の決め方!AI25=\"いいえ\")),\"1～20の任意の数\",IF(OR(AND(計算背景!E14<1000,記入対象者の決め方!AI22=\"はい\",記入対象者の決め方!AI25=\"はい\"),AND(計算背景!E14<1000,記入対象者の決め方!AI22=\"はい\",記入対象者の決め方!AI25=\"いいえ\"),AND(計算背景!E14<1000,記入対象者の決め方!AI22=\"いいえ\",記入対象者の決め方!AI25=\"はい\"),AND(計算背景!E14<1000,記入対象者の決め方!AI22=\"いいえ\",記入対象者の決め方!AI25=\"いいえ\")),\"1～100の任意の数\",IF(OR(AND(計算背景!E14<5000,記入対象者の決め方!AI22=\"はい\",記入対象者の決め方!AI25=\"はい\"),AND(計算背景!E14<5000,記入対象者の決め方!AI22=\"はい\",記入対象者の決め方!AI25=\"いいえ\"),AND(計算背景!E14<5000,記入対象者の決め方!AI22=\"いいえ\",記入対象者の決め方!AI25=\"はい\"),AND(計算背景!E14<5000,記入対象者の決め方!AI22=\"いいえ\",記入対象者の決め方!AI25=\"いいえ\")),\"1～200の任意の数\",IF(OR(AND(計算背景!E14>=5000,計算背景!K11<20000,記入対象者の決め方!AI22=\"はい\",記入対象者の決め方!AI25=\"はい\"),AND(計算背景!E14>=5000,計算背景!K11<20000,記入対象者の決め方!AI22=\"はい\",記入対象者の決め方!AI25=\"いいえ\"),AND(計算背景!E14>=5000,計算背景!K11<20000,記入対象者の決め方!AI22=\"いいえ\",記入対象者の決め方!AI25=\"はい\"),AND(計算背景!E14>=5000,計算背景!K11<20000,記入対象者の決め方!AI22=\"いいえ\",記入対象者の決め方!AI25=\"いいえ\")),\"1～200の任意の数\",IF(OR(AND(計算背景!E14>=5000,計算背景!K11>=20000,記入対象者の決め方!AI22=\"はい\",記入対象者の決め方!AI25=\"はい\",計算背景!E30=100),AND(計算背景!E14>=5000,計算背景!K11>=20000,記入対象者の決め方!AI22=\"はい\",記入対象者の決め方!AI25=\"いいえ\",計算背景!E30=100),AND(計算背景!E14>=5000,計算背景!K11>=20000,記入対象者の決め方!AI22=\"いいえ\",記入対象者の決め方!AI25=\"はい\",計算背景!E30=100),AND(計算背景!E14>=5000,計算背景!K11>=20000,記入対象者の決め方!AI22=\"いいえ\",記入対象者の決め方!AI25=\"いいえ\",計算背景!E30=100)),\"\",\"上記①～⑤\")))))))))","v":"上記①～⑤"}]
[null,null,null,null,null,null,null,null,null,null,"人",null,"図の数字１",{"$f":"IF(AND(E14<500,記入対象者の決め方!AI22=1,記入対象者の決め方!AI25=1),\"11 ●●▲▲さん\",IF(OR(AND(計算背景!E14<10,記入対象者の決め方!AI22=1,記入対象者の決め方!AI25=2),AND(計算背景!E14<10,記入対象者の決め方!AI22=2,記入対象者の決め方!AI25=1),AND(計算背景!E14<10,記入対象者の決め方!AI22=2,記入対象者の決め方!AI25=2)),\"左図参照\",IF(OR(AND(計算背景!E14<30,記入対象者の決め方!AI22=1,記入対象者の決め方!AI25=2),AND(計算背景!E14<30,記入対象者の決め方!AI22=2,記入対象者の決め方!AI25=1),AND(計算背景!E14<30,記入対象者の決め方!AI22=2,記入対象者の決め方!AI25=2)),\"3 ●●▲▲さん\",IF(OR(AND(計算背景!E14<100,記入対象者の決め方!AI22=1,記入対象者の決め方!AI25=2),AND(計算背景!E14<100,記入対象者の決め方!AI22=2,記入対象者の決め方!AI25=1),AND(計算背景!E14<100,記入対象者の決め方!AI22=2,記入対象者の決め方!AI25=2)),\"6 ●●▲▲さん\",IF(OR(AND(計算背景!E14<500,記入対象者の決め方!AI22=1,記入対象者の決め方!AI25=2),AND(計算背景!E14<500,記入対象者の決め方!AI22=2,記入対象者の決め方!AI25=1),AND(計算背景!E14<500,記入対象者の決め方!AI22=2,記入対象者の決め方!AI25=2)),\"21 ●●▲▲さん\",IF(OR(AND(計算背景!E14<1000,記入対象者の決め方!AI22=1,記入対象者の決め方!AI25=1),AND(計算背景!E14<1000,記入対象者の決め方!AI22=1,記入対象者の決め方!AI25=2),AND(計算背景!E14<1000,記入対象者の決め方!AI22=2,記入対象者の決め方!AI25=1),AND(計算背景!E14<1000,記入対象者の決め方!AI22=2,記入対象者の決め方!AI25=2)),\"51 ●●▲▲さん\",IF(OR(AND(計算背景!E14<5000,記入対象者の決め方!AI22=1,記入対象者の決め方!AI25=1),AND(計算背景!E14<5000,記入対象者の決め方!AI22=1,記入対象者の決め方!AI25=2),AND(計算背景!E14<5000,記入対象者の決め方!AI22=2,記入対象者の決め方!AI25=1),AND(計算背景!E14<5000,記入対象者の決め方!AI22=2,記入対象者の決め方!AI25=2)),\"101 ●●▲▲さん\",\"201 ●●▲▲さん\")))))))","v":"201 ●●▲▲さん"}]
[null,null,{"$f":"IF(AND(E14<500,記入対象者の決め方!AI22=\"はい\",記入対象者の決め方!AI25=\"はい\"),\"20\",IF(OR(AND(計算背景!E14<10,記入対象者の決め方!AI22=\"はい\",記入対象者の決め方!AI25=\"いいえ\"),AND(計算背景!E14<10,記入対象者の決め方!AI22=\"いいえ\",記入対象者の決め方!AI25=\"はい\"),AND(計算背景!E14<10,記入対象者の決め方!AI22=\"いいえ\",記入対象者の決め方!AI25=\"いいえ\")),\"1\",IF(OR(AND(計算背景!E14<30,記入対象者の決め方!AI22=\"はい\",記入対象者の決め方!AI25=\"いいえ\"),AND(計算背景!E14<30,記入対象者の決め方!AI22=\"いいえ\",記入対象者の決め方!AI25=\"はい\"),AND(計算背景!E14<30,記入対象者の決め方!AI22=\"いいえ\",記入対象者の決め方!AI25=\"いいえ\")),\"2\",IF(OR(AND(計算背景!E14<100,記入対象者の決め方!AI22=\"はい\",記入対象者の決め方!AI25=\"いいえ\"),AND(計算背景!E14<100,記入対象者の決め方!AI22=\"いいえ\",記入対象者の決め方!AI25=\"はい\"),AND(計算背景!E14<100,記入対象者の決め方!AI22=\"いいえ\",記入対象者の決め方!AI25=\"いいえ\")),\"6\",IF(OR(AND(計算背景!E14<500,記入対象者の決め方!AI22=\"はい\",記入対象者の決め方!AI25=\"いいえ\"),AND(計算背景!E14<500,記入対象者の決め方!AI22=\"いいえ\",記入対象者の決め方!AI25=\"はい\"),AND(計算背景!E14<500,記入対象者の決め方!AI22=\"いいえ\",記入対象者の決め方!AI25=\"いいえ\")),\"20\",IF(OR(AND(計算背景!E14<1000,記入対象者の決め方!AI22=\"はい\",記入対象者の決め方!AI25=\"はい\"),AND(計算背景!E14<1000,記入対象者の決め方!AI22=\"はい\",記入対象者の決め方!AI25=\"いいえ\"),AND(計算背景!E14<1000,記入対象者の決め方!AI22=\"いいえ\",記入対象者の決め方!AI25=\"はい\"),AND(計算背景!E14<1000,記入対象者の決め方!AI22=\"いいえ\",記入対象者の決め方!AI25=\"いいえ\")),\"100\",IF(OR(AND(計算背景!E14<5000,記入対象者の決め方!AI22=\"はい\",記入対象者の決め方!AI25=\"はい\"),AND(計算背景!E14<5000,記入対象者の決め方!AI22=\"はい\",記入対象者の決め方!AI25=\"いいえ\"),AND(計算背景!E14<5000,記入対象者の決め方!AI22=\"いいえ\",記入対象者の決め方!AI25=\"はい\"),AND(計算背景!E14<5000,記入対象者の決め方!AI22=\"いいえ\",記入対象者の決め方!AI25=\"いいえ\")),\"200\",IF(OR(AND(計算背景!E14>=5000,記入対象者の決め方!AI22=\"はい\",記入対象者の決め方!AI25=\"はい\"),AND(計算背景!E14>=5000,記入対象者の決め方!AI22=\"はい\",記入対象者の決め方!AI25=\"いいえ\"),AND(計算背景!E14>=5000,記入対象者の決め方!AI22=\"いいえ\",記入対象者の決め方!AI25=\"はい\"),AND(計算背景!E14>=5000,記入対象者の決め方!AI22=\"いいえ\",記入対象者の決め方!AI25=\"いいえ\")),\"200\",\"0\"))))))))","v":"0"},null,"人",null,null,null,null,null,null,null,"図の数字２",{"$f":"IF(AND(E14<500,記入対象者の決め方!AI22=1,記入対象者の決め方!AI25=1),\"21\",IF(OR(AND(計算背景!E14<10,記入対象者の決め方!AI22=1,記入対象者の決め方!AI25=2),AND(計算背景!E14<10,記入対象者の決め方!AI22=2,記入対象者の決め方!AI25=1),AND(計算背景!E14<10,記入対象者の決め方!AI22=2,記入対象者の決め方!AI25=2)),\"左図参照\",IF(OR(AND(計算背景!E14<30,記入対象者の決め方!AI22=1,記入対象者の決め方!AI25=2),AND(計算背景!E14<30,記入対象者の決め方!AI22=2,記入対象者の決め方!AI25=1),AND(計算背景!E14<30,記入対象者の決め方!AI22=2,記入対象者の決め方!AI25=2)),\"5 △△○○さん\",IF(OR(AND(計算背景!E14<100,記入対象者の決め方!AI22=1,記入対象者の決め方!AI25=2),AND(計算背景!E14<100,記入対象者の決め方!AI22=2,記入対象者の決め方!AI25=1),AND(計算背景!E14<100,記入対象者の決め方!AI22=2,記入対象者の決め方!AI25=2)),\"11 △△○○さん\",IF(OR(AND(計算背景!E14<500,記入対象者の決め方!AI22=1,記入対象者の決め方!AI25=2),AND(計算背景!E14<500,記入対象者の決め方!AI22=2,記入対象者の決め方!AI25=1),AND(計算背景!E14<500,記入対象者の決め方!AI22=2,記入対象者の決め方!AI25=2)),\"41 △△○○さん\",IF(OR(AND(計算背景!E14<1000,記入対象者の決め方!AI22=1,記入対象者の決め方!AI25=1),AND(計算背景!E14<1000,記入対象者の決め方!AI22=1,記入対象者の決め方!AI25=2),AND(計算背景!E14<1000,記入対象者の決め方!AI22=2,記入対象者の決め方!AI25=1),AND(計算背景!E14<1000,記入対象者の決め方!AI22=2,記入対象者の決め方!AI25=2)),\"101 △△○○さん\",IF(OR(AND(計算背景!E14<5000,記入対象者の決め方!AI22=1,記入対象者の決め方!AI25=1),AND(計算背景!E14<5000,記入対象者の決め方!AI22=1,記入対象者の決め方!AI25=2),AND(計算背景!E14<5000,記入対象者の決め方!AI22=2,記入対象者の決め方!AI25=1),AND(計算背景!E14<5000,記入対象者の決め方!AI22=2,記入対象者の決め方!AI25=2)),\"201 △△○○さん\",\"401 △△○○さん\")))))))","v":"401 △△○○さん"}]
[null,null,null,null,null,null,null,null,null,null,null,null,null,null,null,{"$f":"IF(J20<100,Q23,R23)","v":"※上記①～⑤を入力していただくと、自動的に⑥が赤反転しますが、任意の数を入力していただくと、黄色に変わります。\n　 赤色の場合は、正しい記入対象者を求めることができませんので、左側に示された条件の範囲内の数を入力していただき、黄色に変わったことをご確認のうえ、お進みください。"},"※上記①～⑤を入力していただくと、自動的に⑥が赤反転しますが、任意の数を入力していただくと、黄色に変わります。\n　 赤色の場合は、正しい記入対象者を求めることができませんので、左側に示された条件の範囲内の数を入力していただき、黄色に変わったことをご確認のうえ、お進みください。","※上記①～⑤を入力していただくと、自動的に⑥が赤反転しますが、任意の数を入力していただくと、黄色に変わります。\n　 赤色の場合は、正しい記入対象者を求めることができませんので、左側に示された条件の範囲内の数を入力していただき、黄色に変わったことをご確認のうえ、お進みください。\n7層かつ③を除いた記入人数が100人以上の場合、⑥は自動で数字が入力されます。"]
[null,null,null,null,null,{"$f":"H11","v":0},null,null,null,null,null,null,null,null,null,{"$f":"IF(J20<100,Q24,R24)","v":"を入力してください。"},"を入力してください。"]
[null,"①給与の金額（年間）２，０００万円を超える",null,null,null,null,"人を調査票（給与所得者用）に記載してください。",null,null,null,null,null,null,null,null,{"$f":"IF(J20<100,Q25,R25)","v":"・・・"},"・・・"]
[]
[null,null,null,null,null,null,{"$f":"K11","v":0},null,null,{"$f":"IF(K11=0,0,E19)","v":0}]
[null,"　②続いて、給与の金額（年間）が２，０００万円以下の",null,null,null,null,null,"人の最初から",null,null,"人目と"]
[]
[null,null,{"$f":"IF(K11=0,0,IF(計算背景!C22=0,\"\",IF(VALUE(計算背景!$J$20)>=100,IF(計算背景!K11=0,0,IF(VALUE(計算背景!$J$20)>=100,計算背景!$O$19,記入対象者の決め方!$AI$28)),計算背景!C22)))","v":0},null,{"$f":"IF(K11=0,0,IF(J20<100,J20,100))","v":0},null,null,{"$f":"F24","v":0}]
[null,"順次",null,"人ごとに計",null,"人を選び出し、①の",null,null,"人続けて調査票に記入します。"]
[]
[null,null,null,null,null,null,{"$f":"E30+H30","v":0}]
[null,"なお、調査票（給与所得者用）に記載される合計人数は",null,null,null,null,null,"人となり、調査票（源泉徴収義務者用）（③）"]
[null,"の２（２）に記載する人数と同数になります。"]
[]
[]
[]
[]
[]
[]
[]
[]
[]
[]
[]
[]
[]
[null,"★黄色のセルに該当する数字を入力してください。"]
[null,"※給与所得者数のセルが赤反転した場合は、①８層（給与所得者500人未満で資本金10億円以上の株式会社）以外の事業所用で計算してください。"]
[]
[]
[]
["平成29年12月31日現在の給与所得者数",null,null,"「日額表」丙欄を適用した人数",null,null,"給与の金額（年間）2,000万円超の人数"]
[null,400,"人","－",null,"人","－",null,"人","＝",{"$f":"B55-E55-H55","v":400},"人"]
[]
[]
[]
[null,null,null,null,"任意の数字"]
[null,{"$f":"K55","v":400},"人","－",null,"人",null,null,"調査票（給与所得者用）記入人数"]
[null,null,null,null,null,null,"＋",1,"＝",{"$f":"ROUNDDOWN((B60-E60)/C63+1,0)","v":41}]
[null,null,null,null,null,null,null,null,null,null,"人"]
[null,null,10,null,"人"]